lending/lending_fUSD_20240124
["ID","MTS","AMOUNT","RATE_DAILY","PERIOD"]
[312626299,1706113844337,-1994.29,0.000367,3]
[312626300,1706113844346,-571.11220365,0.00036813,8]
[312626301,1706113844355,-153.94,0.00036881,2]
[312626302,1706113844365,-166.32,0.000369,7]
[312626303,1706113844375,-185.0,0.00036981,2]
[312626304,1706113844384,-50000.0,0.00037,17]
[312626305,1706113844393,-6764.60587248,0.00037,2]
[312626306,1706113844413,-143701.4341352,0.00037,2]
[312626307,1706113844423,-750.0,0.00037,3]
[312626308,1706113844433,-1000.0,0.00037,7]
[312626309,1706113844444,-1109.0,0.00037,7]
[312626310,1706113844454,-230.93094591,0.00037057,2]
[312626311,1706113844463,-150.0,0.00037057,2]
[312626312,1706113844473,-150.0,0.00037117,2]
[312626313,1706113844482,-150.0,0.00037117,2]
[312626314,1706113844492,-150.0,0.00037117,2]
[312626315,1706113844501,-150.0,0.00037117,2]
[312626316,1706113844511,-4029.9705447,0.00037217,14]
[312626317,1706113844520,-185.84755296,0.00037236,4]
[312626318,1706113844529,-1776.58249317,0.00037403,10]
[312626319,1706113844539,-151.0,0.00037644,30]
[312626320,1706113844548,-474.6,0.00037683,2]
[312626321,1706113844562,-500.0,0.00037694,2]
[312626322,1706113844572,-200.0,0.00037694,2]
[312626323,1706113844582,-1994.26,0.000377,3]
[312626324,1706113844592,-153.94,0.00037724,2]
[312626325,1706113844601,-150.0,0.00037741,2]
[312626326,1706113844611,-300.0,0.00037749,2]
[312626327,1706113844626,-150.0,0.00037754,2]
[312626328,1706113844636,-150.0,0.00037761,2]
[312626329,1706113844645,-280.2798231,0.000378,2]
[312626330,1706113844655,-2256.91,0.00037808,2]
[312626331,1706113844666,-1311.39,0.00037808,2]
[312626332,1706113844676,-552.79193079,0.00037818,2]
[312626333,1706113844686,-2658.83611116,0.00037818,2]
[312626334,1706113844696,-150.0,0.0003782,2]
[312626335,1706113844706,-150.0,0.00037823,2]
[312626336,1706113844715,-150.0,0.00037827,2]
[312626337,1706113844725,-150.0,0.00037836,2]
[312626338,1706113844735,-150.0,0.00037841,2]
[312626339,1706113844744,-150.0,0.00037854,2]
[312626340,1706113844754,-150.0,0.00037867,2]
[312626341,1706113844764,-150.0,0.00037874,2]
[312626342,1706113844774,-1016.25451736,0.00037888,28]
[312626343,1706113844784,-200.0,0.00037891,2]
[312626344,1706113844796,-929.63410052,0.00037897,2]
[312626345,1706113844806,-150.0,0.00037899,2]
[312626346,1706113844816,-150.0,0.00037899,2]
[312626347,1706113844826,-166.32,0.000379,7]
[312626348,1706113844836,-500.0,0.000379,7]
[312626349,1706113844845,-150.0,0.000379,2]
[312626350,1706113844855,-1999.4,0.000379,2]
[312626351,1706113844864,-300.0,0.000379,13]
[312626352,1706113844875,-25087.3714763,0.000379,3]
[312626353,1706113844888,-285.32172466,0.000379,3]
[312626354,1706113844901,-3048.60023937,0.000379,3]
[312626355,1706113844914,-5375.63880446,0.000379,3]
[312626356,1706113844928,-365.75763397,0.000379,3]
[312626357,1706113844941,-511.680005,0.000379,3]
[312626358,1706113844969,-341.04,0.00034499,4]
[312626359,1706113844982,-176.32558014,0.00034499,4]
[312626360,1706113844991,-244.15062787,0.000379,3]
[312626403,1706113846687,-2603.40701251,0.000229,2]
[312626404,1706113846698,-211.55,0.000274,2]
[312626405,1706113846708,-211.55,0.000274,2]
[312626406,1706113846717,-211.55,0.000274,2]
[312626407,1706113846726,-211.55,0.000274,2]
[312626408,1706113846736,-211.55,0.000274,2]
[312626409,1706113846745,-211.55,0.000274,2]
[312626410,1706113846754,-211.55,0.0002999,2]
[312626411,1706113846764,-217.0,0.00030349,5]
[312626412,1706113846773,-211.55,0.00031609,2]
[312626413,1706113846783,-697.3169658,0.00034499,4]
[312626414,1706113846793,-177.77857179,0.00034499,4]
[312626415,1706113846802,-595.4984518,0.00034499,4]
[312626416,1706113846811,-151.46361757,0.00036098,2]
[312626417,1706113846821,-28005.7676856,0.000379,3]
[312626418,1706113846833,-21493.45045401,0.000379,3]
[312626419,1706113846844,-6102.95790636,0.000379,3]
[312626420,1706113846856,-510.41555221,0.000379,3]
[312626421,1706113846878,-195.8510236,0.00034498,4]
[312626422,1706113846888,-72165.56783962,0.000379,3]
[312626423,1706113846899,-422.91126348,0.000379,3]
[312626424,1706113846911,-599.27979208,0.000379,3]
[312626425,1706113846922,-2448.18997353,0.000379,3]
[312626426,1706113846960,-13029.36295885,0.00022998,2]
[312626427,1706113846970,-211.55,0.0003179,2]
[312626428,1706113846980,-400.40072411,0.00034498,4]
[312626429,1706113846990,-237088.31696718,0.000379,3]
[312626430,1706113847002,-6139.41246664,0.000379,3]
[312626431,1706113847108,-345.12,0.000379,3]
[312626432,1706113847121,-11165.33584239,0.000379,3]
[312626433,1706113847987,-238238.80168827,0.000379,3]
[312626434,1706113847996,-302.46,0.000379,2]
[312626435,1706113848006,-150.0,0.00037918,2]
[312626436,1706113848015,-150.0,0.00037923,2]
[312626437,1706113848024,-1527.03208749,0.00037938,2]
[312626438,1706113848034,-150.0,0.00037957,2]
[312626439,1706113848044,-168.51110187,0.00037962,2]
[312626440,1706113848053,-150.0,0.00037971,2]
[312626441,1706113848062,-150.0,0.00037986,2]
[312626442,1706113848072,-150.0,0.00037987,2]
[312626443,1706113848081,-150.0,0.00037988,2]
[312626444,1706113848091,-7106.77367024,0.00037996,5]
[312626445,1706113848100,-3300.30698936,0.00037996,2]
[312626446,1706113848109,-200.0,0.00037998,2]
[312626447,1706113848120,-26892.77389538,0.00037999,4]
[312626448,1706113848130,-100000.0,0.00038,18]
[312626449,1706113848140,-1500.0,0.00038,2]
[312626450,1706113848149,-5839.85633545,0.00038,4]
[312626451,1706113848161,-435.17009799,0.00038,4]
[312626452,1706113848170,-1000.0,0.00038,2]
[312626453,1706113848179,-1500.0,0.00038,2]
[312626454,1706113848188,-1500.0,0.00038,2]
[312626455,1706113848197,-1500.0,0.00038,2]
[312626456,1706113848206,-1453.47,0.00038,2]
[312626457,1706113848215,-1000.0,0.00038,7]
[312626458,1706113848224,-169.0,0.00038,2]
[312626459,1706113848234,-300.0,0.00038,12]
[312626460,1706113848244,-500.0,0.00038,6]
[312626461,1706113848253,-500.0,0.00038,6]
[312626462,1706113848262,-519.21918505,0.00038,6]
[312626463,1706113848272,-9422.7944079,0.00038005,2]
[312626464,1706113848282,-20726.74854495,0.00038005,2]
[312626465,1706113848294,-12666.68893938,0.00038005,2]
[312626466,1706113848314,-1164.9428467,0.00038005,2]
[312626467,1706113848326,-812.41926201,0.00038005,2]
[312626468,1706113848337,-557.77357105,0.00038005,2]
[312626492,1706114788903,3402.062074,0.0003,120]
[312626517,1706115032230,-956.9078761,0.00022858,2]
[312626518,1706115032288,-3677.26281111,0.00022858,2]
[312626519,1706115032350,-6348.09598006,0.00022858,2]
[312626568,1706115038193,-2158.24505822,0.00022858,2]
[312626577,1706115038307,-11233.71184255,0.00022858,2]
[312626578,1706115038316,-4251.93051247,0.00022859,2]
[312626579,1706115038325,-412.67907844,0.0002286,2]
[312626580,1706115038335,-1000.0,0.0002286,2]
[312626581,1706115038344,-767.58742384,0.00022861,2]
[312626582,1706115038355,-3589.37137847,0.00022861,2]
[312626583,1706115038364,-13029.36295885,0.00022861,2]
[312626584,1706115038373,-13029.36295885,0.00022861,2]
[312626585,1706115038382,-13029.36295885,0.00022861,2]
[312626586,1706115038392,-13029.36295885,0.00022861,2]
[312626587,1706115038416,-13029.36295885,0.00022861,2]
[312626588,1706115038446,-300.0,0.00022868,2]
[312626589,1706115038456,-150.0,0.00022868,2]
[312626590,1706115038466,-3008.52191293,0.00022875,2]
[312626591,1706115038475,-300.0,0.00022999,2]
[312626592,1706115038484,-300.0,0.00022999,2]
[312626593,1706115038494,-300.0,0.00022999,2]
[312626594,1706115038504,-300.0,0.00022999,2]
[312626595,1706115038513,-300.0,0.00022999,2]
[312626596,1706115038522,-300.0,0.00022999,2]
[312626597,1706115038531,-300.0,0.00022999,2]
[312626598,1706115038541,-300.0,0.00022999,2]
[312626599,1706115038550,-300.0,0.00022999,2]
[312626600,1706115038560,-450.0,0.00025,3]
[312626601,1706115038569,-500.0,0.00026,2]
[312626602,1706115038578,-500.0,0.00027,3]
[312626603,1706115038587,-630.82,0.00027397,2]
[312626604,1706115038597,-249.64700977,0.00027399,2]
[312626605,1706115038609,-260.091004,0.00027399,2]
[312626606,1706115038618,-218.7086872,0.00027399,2]
[312626608,1706115038628,-630.82,0.00027686,2]
[312626610,1706115038638,-154.90874207,0.00027974,6]
[312626612,1706115038647,-630.82,0.00027974,2]
[312626613,1706115038657,-630.82,0.00028262,2]
[312626614,1706115038666,-630.82,0.00028551,2]
[312626615,1706115038676,-458.54,0.00028559,2]
[312626616,1706115038684,-630.82,0.00028839,2]
[312626617,1706115038695,-550.0,0.00029,3]
[312626618,1706115038704,-630.82,0.00029128,2]
[312626619,1706115038714,-630.82,0.00029416,2]
[312626620,1706115038724,-300.0,0.00029471,2]
[312626621,1706115038732,-630.82,0.00029704,2]
[312626622,1706115038742,-630.82,0.00029993,2]
[312626623,1706115038751,-150.524692,0.0003,2]
[312626624,1706115038761,-155.0,0.0003,2]
[312626625,1706115038771,-156.86047358,0.0003,2]
[312626626,1706115038780,-1033.5553764,0.0003,4]
[312626627,1706115038790,-885.92880724,0.0003,4]
[312626628,1706115038799,-256.56501405,0.0003,4]
[312626629,1706115038808,-284.3933126,0.0003,4]
[312626630,1706115038818,-194.19666713,0.0003,4]
[312626631,1706115038828,-184.22209122,0.0003,4]
[312626632,1706115038836,-310.48413435,0.0003,4]
[312626633,1706115038846,-380.95427769,0.0003,4]
[312626634,1706115038857,-271.66060673,0.0003,4]
[312626635,1706115038867,-200.0,0.0003,2]
[312626636,1706115038876,-1174.62930389,0.0003,60]
[312626637,1706115038885,-630.82,0.00030281,2]
[312626638,1706115038895,-3066.08,0.00030364,2]
[312626639,1706115038904,-1000.0,0.00030407,2]
[312626640,1706115038914,-250.0,0.00030477,2]
[312626641,1706115038924,-497.55,0.0003054,2]
[312626642,1706115038933,-630.82,0.00030569,2]
[312626643,1706115038943,-155.26,0.00030811,2]
[312626644,1706115038952,-458.54,0.00030823,2]
[312626645,1706115038961,-4170.99,0.00030847,2]
[312626646,1706115038970,-630.82,0.00030858,2]
[312626647,1706115038979,-629.23,0.0003087,2]
[312626648,1706115038988,-155.26,0.00030912,2]
[312626649,1706115038998,-200.0,0.00030912,2]
[312626650,1706115039010,-151.29,0.00030996,2]
[312626651,1706115039019,-600.0,0.00031,3]
[312626652,1706115039028,-155.26,0.00031012,2]
[312626653,1706115039037,-4648.03,0.00031013,2]
[312626654,1706115039046,-4170.99,0.00031026,2]
[312626655,1706115039055,-345.76,0.00031091,2]
[312626656,1706115039065,-155.26,0.00031112,2]
[312626657,1706115039074,-183.36,0.00031117,2]
[312626658,1706115039083,-630.82,0.00031146,2]
[312626659,1706115039093,-1818.64,0.00031172,2]
[312626660,1706115039104,-1000.0,0.00031172,2]
[312626661,1706115039114,-200.0,0.00031188,2]
[312626662,1706115039124,-4170.99,0.00031204,2]
[312626663,1706115039134,-155.26,0.00031213,2]
[312626664,1706115039146,-250.0,0.00031217,2]
[312626665,1706115039156,-150.0,0.00031244,2]
[312626666,1706115039166,-155.26,0.00031313,2]
[312626667,1706115039176,-1228.73,0.00031366,2]
[312626668,1706115039185,-4170.99,0.00031382,2]
[312626669,1706115039195,-7771.0,0.000314,3]
[312626670,1706115039204,-2945.0,0.000314,3]
[312626671,1706115039213,-155.26,0.00031414,2]
[312626672,1706115039222,-630.82,0.00031435,2]
[312626673,1706115039231,-155.26,0.00031514,2]
[312626674,1706115039240,-4170.99,0.0003156,2]
[312626675,1706115039249,-155.26,0.00031614,2]
[312626676,1706115039258,-155.26,0.00031715,2]
[312626677,1706115039267,-630.82,0.00031723,2]
[312626678,1706115039276,-4170.99,0.00031738,2]
[312626679,1706115039286,-300.0,0.00031799,2]
[312626680,1706115039295,-155.26,0.00031815,2]
[312626681,1706115039305,-874.26,0.00031884,2]
[312626682,1706115039315,-155.26,0.00031915,2]
[312626683,1706115039325,-4170.99,0.00031917,2]
[312626684,1706115039337,-300.0,0.00031999,2]
[312626685,1706115039346,-155.43063941,0.00032,2]
[312626686,1706115039356,-630.82,0.00032011,2]
[312626687,1706115039365,-629.23,0.00032012,2]
[312626688,1706115039375,-155.26,0.00032016,2]
[312626689,1706115039385,-4170.99,0.00032095,2]
[312626690,1706115039395,-155.26,0.00032116,2]
[312626691,1706115039405,-155.26,0.00032216,2]
[312626692,1706115039415,-4170.99,0.00032273,2]
[312626693,1706115039424,-630.82,0.000323,2]
[312626694,1706115039434,-155.26,0.00032317,2]
[312626695,1706115039443,-155.26,0.00032417,2]
[312626696,1706115039453,-4170.99,0.00032451,2]
[312626697,1706115039464,-224.6,0.00032569,2]
[312626698,1706115039473,-630.82,0.00032588,2]
[312626699,1706115039483,-150.14558354,0.000327,2]
[312626700,1706115039493,-150.14558343,0.000327,2]
[312626701,1706115039503,-150.14558343,0.000327,2]
[312626702,1706115039513,-345.76,0.00032734,2]
[312626703,1706115039522,-171.11,0.00032757,2]
[312626704,1706115039532,-630.82,0.00032877,2]
[312626705,1706115039541,-176.04,0.00032877,15]
[312626706,1706115039550,-1000.0,0.000329,2]
[312626707,1706115039559,-150.14558343,0.00032968,2]
[312626708,1706115039568,-458.54,0.00033087,2]
[312626709,1706115039578,-629.23,0.00033154,2]
[312626710,1706115039587,-150.14558343,0.00033627,2]
[312626711,1706115039596,-152.96,0.000338,2]
[312626712,1706115039606,-152.96,0.000338,2]
[312626713,1706115039616,-152.96,0.000338,2]
[312626714,1706115039625,-152.96,0.000338,2]
[312626715,1706115039634,-152.96,0.000338,2]
[312626716,1706115039644,-152.96,0.000338,2]
[312626717,1706115039654,-152.96,0.000338,2]
[312626718,1706115039663,-152.96,0.000338,2]
[312626719,1706115039672,-152.96,0.000338,2]
[312626720,1706115039681,-152.96,0.000338,2]
[312626721,1706115039690,-152.96,0.000338,2]
[312626722,1706115039699,-152.96,0.000338,2]
[312626723,1706115039709,-152.96,0.000338,2]
[312626724,1706115039719,-152.96,0.000338,2]
[312626725,1706115039728,-152.96,0.000338,2]
[312626726,1706115039737,-152.96,0.000338,2]
[312626727,1706115039746,-153.91,0.00033851,2]
[312626728,1706115039756,-1000.0,0.00034,4]
[312626729,1706115039764,-224.6,0.00034197,2]
[312626730,1706115039774,-1000.0,0.00034208,2]
[312626731,1706115039783,-150.14558343,0.00034286,2]
[312626732,1706115039793,-629.23,0.00034296,2]
[312626733,1706115039803,-345.76,0.00034378,2]
[312626734,1706115039813,-183.33,0.00034454,120]
[312626735,1706115039822,-371.4493613,0.00034498,4]
[312626736,1706115039832,-150.0,0.000347,2]
[312626737,1706115039842,-150.14558343,0.00034946,2]
[312626738,1706115039851,-155.0,0.00035,2]
[312626739,1706115039862,-458.54,0.00035351,2]
[312626740,1706115039872,-205.0,0.00035382,2]
[312626741,1706115039881,-629.23,0.00035438,2]
[312626742,1706115039890,-740.0,0.000356,2]
[312626743,1706115039900,-150.14558343,0.00035605,2]
[312626744,1706115039909,-150.0,0.00035616,2]
[312626745,1706115039919,-300.0,0.00035616,7]
[312626746,1706115039928,-450.0,0.00035616,12]
[312626747,1706115039938,-300.0,0.00035616,17]
[312626748,1706115039947,-224.6,0.00035826,2]
[312626749,1706115039957,-1490.0,0.000359,12]
[312626750,1706115039967,-300.0,0.00035999,2]
[312626751,1706115039976,-345.76,0.00036022,2]
[312626752,1706115039985,-151.46361757,0.00036104,2]
[312626753,1706115039995,-150.14558343,0.00036264,2]
[312626754,1706115040005,-153.91,0.00036313,2]
[312626755,1706115040016,-209.0,0.00036452,2]
[312626757,1706115040027,-150.0,0.00036452,2]
[312626759,1706115040037,-419.33476208,0.00036474,4]
[312626760,1706115040047,-625.68257867,0.00036474,2]
[312626761,1706115040056,-3188.89864652,0.00036475,2]
[312626762,1706115040066,-689.05942203,0.00036481,4]
[312626763,1706115040075,-300.0,0.00036489,2]
[312626764,1706115040084,-199.0,0.00036547,5]
[312626765,1706115040093,-176.04,0.00036613,15]
[312626766,1706115040103,-7724.8748,0.000369,2]
[312626767,1706115040113,-150.14558343,0.00036923,2]
[312626768,1706115040122,-241.65,0.0003699,2]
[312626769,1706115040131,-300.0,0.00036999,2]
[312626770,1706115040140,-31773.44369325,0.00037,17]
[312626771,1706115040182,-18226.55630675,0.00037,17]
[312626772,1706115040192,-777.0125,0.00037048,12]
[312626773,1706115040202,-777.0125,0.00037148,16]
[312626774,1706115040212,-14926.0,0.00037228,2]
[312626775,1706115040222,-777.0125,0.00037248,14]
[312626776,1706115040233,-777.0125,0.00037348,14]
[312626777,1706115040243,-777.0125,0.00037448,16]
[312626778,1706115040254,-224.6,0.00037454,2]
[312626779,1706115040263,-162.07626483,0.00037497,8]
[312626780,1706115040273,-1500.0,0.000375,26]
[312626781,1706115040284,-251.33576022,0.0003751,2]
[312626782,1706115040294,-1000.0,0.00037512,2]
[312626783,1706115040304,-777.0125,0.00037548,14]
[312626784,1706115040313,-150.14558343,0.00037582,2]
[312626785,1706115040322,-238.81571519,0.00037587,8]
[312626786,1706115040333,-676.48606636,0.00037587,8]
[312626787,1706115040345,-7281.19189904,0.00037604,10]
[312626788,1706115040357,-582.7666979,0.0003761,4]
[312626789,1706115040368,-155.0,0.0003761,2]
[312626790,1706115040378,-692.06285158,0.00037611,2]
[312626791,1706115040388,-22618.4614423,0.00037612,4]
[312626792,1706115040400,-494.84174762,0.00037614,4]
[312626793,1706115040410,-458.54,0.00037615,2]
[312626794,1706115040419,-345.76,0.00037666,2]
[312626795,1706115040429,-500.0,0.00037696,2]
[312626796,1706115040440,-200.0,0.00037696,2]
[312626797,1706115040450,-777.0125,0.00037748,16]
[312626798,1706115040459,-7281.19189904,0.00037838,10]
[312626799,1706115040470,-777.0125,0.00037848,14]
[312626800,1706115040481,-520.20621057,0.00037875,2]
[312626801,1706115040492,-43687.1513942,0.00037884,10]
[312626802,1706115040501,-241.65,0.00037884,2]
[312626803,1706115040511,-7281.19189904,0.0003789,10]
[312626804,1706115040523,-170.2496,0.00037892,2]
[312626805,1706115040533,-18194.9167,0.00037894,2]
[312626807,1706115040542,-608.6203,0.00037894,2]
[312626809,1706115040551,-72563.0957,0.00037894,2]
[312626811,1706115040561,-1000.0,0.00037894,15]
[312626813,1706115040570,-500.0,0.00037894,2]
[312626815,1706115040580,-152.07038109,0.00037894,2]
[312626816,1706115040589,-1013.9777,0.00037894,3]
[312626817,1706115040597,-1327.51241905,0.00037895,11]
[312626818,1706115040607,-300.0,0.00037899,2]
[312626819,1706115040616,-300.0,0.00037899,2]
[312626820,1706115040625,-300.0,0.00037899,2]
[312626821,1706115040634,-2943.485281,0.000379,4]
[312626822,1706115040643,-229.76710984,0.000379,2]
[312626823,1706115040652,-1279.14385468,0.000379,2]
[312626824,1706115040661,-1735.604675,0.000379,2]
[312626825,1706115040670,-1587.85302037,0.000379,2]
[312626826,1706115040679,-153.83314228,0.000379,2]
[312626827,1706115040690,-170.15365364,0.00037901,2]
[312626828,1706115040699,-1278.18982016,0.00037902,2]
[312626829,1706115040708,-777.0125,0.00037948,14]
[312626830,1706115040717,-43687.1513942,0.0003796,10]
[312626831,1706115040727,-241.65,0.00037969,2]
[312626832,1706115040736,-241.65,0.00037974,2]
[312626833,1706115040745,-241.65,0.00037974,2]
[312626834,1706115040754,-50968.3432933,0.0003798,10]
[312626835,1706115040763,-82329.3652905,0.0003798,3]
[312626836,1706115040772,-7281.19189904,0.00037982,10]
[312626837,1706115040781,-723.04874485,0.00037982,2]
[312626838,1706115040790,-29124.7675962,0.00037984,10]
[312626839,1706115040799,-27694.58436458,0.00037984,7]
[312626841,1706115041673,-2074.79365824,0.00037984,7]
[312626842,1706115042104,-2000.0,0.00030129,2]
[312626843,1706115042114,-2365.40788766,0.00037984,7]
[312626844,1706115042125,-296.12134139,0.00037984,7]
[312626845,1706115042334,-160.97953374,0.0002276,2]
[312626846,1706115042344,-269300.37480857,0.00037984,7]
[312626847,1706115042361,-500.0,0.00037984,7]
[312626848,1706115042375,-639.92584465,0.00037984,7]
[312626849,1706115042386,-802.1748633,0.00037984,7]
[312626850,1706115042397,-295.41653518,0.00037984,7]
[312626851,1706115042409,-752.08599537,0.00037984,7]
[312626852,1706115042420,-366.43596909,0.00037984,7]
[312626853,1706115042431,-775945.45314954,0.00037984,7]
[312626854,1706115042444,-859352.34267904,0.00037984,7]
[312626855,1706115042454,-65530.7270914,0.00037984,10]
[312626856,1706115042463,-124965.2445191,0.00037984,3]
[312626857,1706115042557,-7420.13946109,0.00037984,3]
[312626862,1706115043250,-150.0,0.00037979,2]
[312626863,1706115043259,-10361.8602,0.00037984,3]
[312626899,1706115046754,-160.97953371,0.00026546,2]
[312626900,1706115046765,-148.20046629,0.00036104,2]
[312626901,1706115046786,-3.26315128,0.00036104,2]
[312626902,1706115046795,-150.0,0.00037979,2]
[312626903,1706115046804,-150.0,0.00037979,2]
[312626904,1706115046814,-127.73684872,0.00037984,3]
[312626906,1706115046953,-104113.11484309,0.00037984,3]
[312626907,1706115046963,-241.65,0.00037984,2]
[312626908,1706115046972,-241.65,0.00037984,2]
[312626909,1706115046981,-57325.96105932,0.0003799,3]
[312626910,1706115047004,-309.18,0.0003799,3]
[312626911,1706115196646,321.55203102,0.00021,2]
[312626913,1706115236867,1099.06361557,0.00021,2]
[312626914,1706115239775,1034.63140054,0.00021,2]
[312626915,1706115241465,886.21714837,0.00021,2]
[312626916,1706115242995,283.53882668,0.00021,2]
[312626919,1706115255777,1034.63140054,0.00021,2]
[312626920,1706115259464,882.8860337,0.00021,2]
[312626921,1706115261015,281.03179426,0.00021,2]
[312626923,1706115269793,486.97122718,0.00021,2]
[312626924,1706115284021,5195.8654879,0.00021,2]
[312626928,1706115318024,1228.66439521,0.00021,2]
[312626931,1706115469599,159.98,0.00017315,2]
[312626932,1706115491697,160.97953371,0.00021633,2]
[312626933,1706115509928,500.0,0.00021,2]
[312626934,1706115522183,376.06,0.00021388,2]
[312626935,1706115528075,500.0,0.00021633,2]
[312626936,1706115537305,155.0,0.00021639,2]
[312626937,1706115537647,1000.0,0.00021639,2]
[312626938,1706115539234,3037.38865997,0.000216,5]
[312626939,1706115540312,616.0,0.00019485,2]
[312626940,1706115542847,245.21688013,0.00021599,2]
[312626941,1706115549781,412.67907844,0.00021639,2]
[312626942,1706115551956,500.0,0.00021633,2]
[312626943,1706115568129,4493.00019474,0.00021639,2]
[312626944,1706115569932,500.0,0.00021633,2]
[312626945,1706115579613,1711.28766055,0.00021639,2]
[312626946,1706115589939,500.0,0.00021633,2]
[312626947,1706115607937,500.0,0.00021633,2]
[312626948,1706115618455,678.47,0.00021444,2]
[312626949,1706115626011,500.0,0.00021633,2]
[312626950,1706115640242,150.0,0.00021443,2]
[312626951,1706115645959,240.39121713,0.00021633,2]
[312626952,1706115647632,2506.19817192,0.00021639,2]
[312626953,1706115656286,458.32811282,0.00021639,2]
[312626954,1706115662577,292.32492895,0.00021633,2]
[312626955,1706115676662,1000.0,0.00021639,2]
[312626956,1706115715984,13084.03142221,0.00021639,2]
[312626957,1706115725657,6088.06824423,0.00021633,2]
[312626958,1706115733405,663.30112776,0.00021633,2]
[312626959,1706115738296,151.29,0.00021457,2]
[312626960,1706115742065,3362.04604178,0.00021639,2]
[312626962,1706115811665,1000.0,0.00021639,2]
[312626963,1706115820423,200.0,0.00021446,2]
[312626966,1706115838245,200.0,0.00021453,2]
[312626967,1706115849815,-412.67907844,0.00021642,2]
[312626968,1706115849839,-183.33,0.00021643,2]
[312626969,1706115849861,-720.55,0.00021644,2]
[312626970,1706115849884,-500.0,0.00021734,2]
[312626971,1706115849909,-616.0,0.00021749,2]
[312626972,1706115849932,-14926.0,0.00021776,2]
[312626973,1706115849959,-155.28,0.00021805,2]
[312626974,1706115849983,-155.28,0.00021868,2]
[312626975,1706115850006,-250.0,0.00021918,2]
[312626976,1706115850029,-155.28,0.00021931,2]
[312626977,1706115850058,-155.28,0.00021994,2]
[312626978,1706115850080,-220.41,0.00021994,3]
[312626979,1706115850101,-151.79719507,0.00021999,2]
[312626980,1706115850123,-4648.03,0.00022025,2]
[312626981,1706115850144,-150.0,0.00022048,2]
[312626982,1706115850166,-150.0,0.00022048,2]
[312626983,1706115850189,-1228.73,0.00022049,2]
[312626984,1706115850211,-155.28,0.00022057,2]
[312626985,1706115850233,-2138.69674334,0.00022069,2]
[312626986,1706115850257,-625.68257867,0.00022078,2]
[312626987,1706115850279,-3188.89864652,0.00022078,2]
[312626988,1706115850304,-419.33476208,0.00022078,2]
[312626989,1706115850327,-155.28,0.00022121,2]
[312626990,1706115850354,-497.55,0.00022125,2]
[312626991,1706115850376,-250.0,0.00022125,2]
[312626992,1706115850399,-155.28,0.00022184,2]
[312626993,1706115850422,-155.28,0.00022247,2]
[312626994,1706115850445,-160.97953371,0.00022267,2]
[312626995,1706115850468,-200.0,0.00022293,2]
[312626996,1706115850491,-155.28,0.0002231,2]
[312626997,1706115850513,-400.0,0.00022356,2]
[312626998,1706115850540,-155.28,0.00022373,2]
[312626999,1706115850563,-155.28,0.00022436,2]
[312627000,1706115850584,-720.55,0.00022445,2]
[312627001,1706115850606,-155.28,0.00022499,2]
[312627002,1706115850628,-155.28,0.00022562,2]
[312627003,1706115850651,-200.0,0.000226,8]
[312627004,1706115850673,-155.28,0.00022626,2]
[312627005,1706115850696,-155.28,0.00022689,2]
[312627006,1706115850724,-500.0,0.000227,8]